bitfinex/quotes_ETHUSD_20240828
["timestamp","ask_amount","ask_price","bid_price","bid_amount"]
[1724852801508,3.96836,2520.0,2519.5,0.18824804]
[1724852801904,3.9682,2520.1,2519.4,4.21578]
[1724852802206,7.664074,2520.6,2519.5,19.65647061]
[1724852802421,3.96888,2519.6,2519.5,19.65647061]
[1724852802637,3.96888,2519.6,2519.5,0.18822435]
[1724852803526,7.93776,2519.6,2519.5,0.18822435]
[1724852803825,6.96888,2519.6,2519.0,0.07939294]
[1724852804028,6.96888,2519.6,2519.5,0.18822435]
[1724852804260,3.96928,2519.4,2519.0,0.97671929]
[1724852804466,3.96936,2519.3,2518.9,2.3178]
[1724852804629,3.96845,2519.9,2519.0,19.46824626]
[1724852804834,7.93902,2519.2,2519.1,19.46824626]
[1724852805176,3.0,2519.8,2518.6,19.46824626]
[1724852805369,6.96924,2519.4,2518.6,19.46824626]
[1724852805669,3.0,2519.4,2518.6,19.46824626]
[1724852805819,3.96976,2519.1,2518.6,19.46824626]
[1724852806016,3.96976,2519.1,2518.5,19.46824626]
[1724852806219,3.97001,2518.9,2518.5,20.83338826]
[1724852807164,3.97015,2518.8,2518.5,19.46824626]
[1724852807368,7.93955,2519.1,2518.5,19.46824626]
[1724852807540,3.96943,2519.3,2518.6,4.0498246]
[1724852807736,3.96878,2519.7,2518.7,2.4935]
[1724852807984,3.96867,2519.8,2519.3,2.4935]
[1724852808126,3.96853,2519.9,2519.4,0.07937301]
[1724852808324,3.96842,2519.9,2519.4,5.0203313]
[1724852808564,3.96842,2519.9,2519.4,1.0511613]
[1724852808731,3.96842,2519.9,2519.3,2.4935]
[1724852808936,3.96832,2520.0,2519.3,2.4935]
[1724852809235,3.96832,2520.0,2518.4,12.05599034]
[1724852809236,3.96779,2520.3,2519.7,2.4935]
[1724852809566,3.96851,2519.9,2519.7,2.4935]
[1724852809857,3.96851,2519.9,2519.8,0.18872769]
[1724852810060,7.93702,2519.9,2519.8,0.18872769]
[1724852810260,3.96882,2519.7,2519.3,2.4297]
[1724852810467,4.68599034,2520.6,2519.3,2.4297]
[1724852810468,3.96911,2519.5,2519.3,2.4297]
[1724852810758,3.96911,2519.5,2519.4,0.18893319]
[1724852811121,7.93825,2519.5,2519.4,0.18893319]
[1724852811322,7.93825,2519.5,2519.0,2.2536]
[1724852811323,3.96911,2519.5,2519.0,2.2536]
[1724852811559,3.96911,2519.5,2519.1,0.18907748]
[1724852811768,3.96893,2519.6,2519.1,0.18907748]
[1724852811936,3.96907,2519.5,2519.1,0.18907748]
[1724852812137,3.96921,2519.4,2519.1,0.18907748]
[1724852812433,3.96907,2519.5,2519.1,0.18907748]
[1724852812849,3.96921,2519.4,2519.1,0.18907748]
[1724852813170,3.96848,2519.9,2519.1,0.26846385]
[1724852813322,3.96848,2519.9,2519.3,3.96923]
[1724852813661,3.0,2520.0,2519.4,0.18903586]
[1724852813662,3.96904,2519.5,2519.4,0.18903586]
[1724852813820,3.96889,2519.6,2519.4,0.18903586]
[1724852814023,3.96863,2519.8,2519.4,19.46824626]
[1724852814221,3.96796,2520.2,2519.6,6.22244]
[1724852814439,3.96796,2520.2,2519.7,0.26823843]
[1724852814639,3.96769,2520.4,2519.8,4.04789987]
[1724852814865,3.96769,2520.4,2520.0,2.2536]
[1724852815224,3.96739,2520.6,2520.1,19.73584897]
[1724852815459,3.96739,2520.6,2520.1,19.6564902]
[1724852816262,3.96739,2520.6,2520.1,22.24433922]
[1724852816639,3.96774,2520.4,2520.1,22.24433922]
[1724852816841,7.93547,2520.4,2520.1,19.6564902]
[1724852817030,3.96739,2520.6,2520.1,19.6564902]
[1724852817370,3.96755,2520.5,2520.2,19.54759668]
[1724852817576,3.96755,2520.5,2520.3,0.18687402]
[1724852817577,3.96762,2520.4,2520.3,0.18687402]
[1724852817753,3.96755,2520.5,2520.3,0.18687402]
[1724852817957,3.96762,2520.4,2520.3,0.18687402]
[1724852818438,7.93516,2520.5,2520.3,0.18687402]
[1724852818633,3.96762,2520.4,2520.3,0.18687402]
[1724852819461,7.93524,2520.4,2520.3,0.18687402]
[1724852819627,11.90286,2520.4,2520.3,0.18687402]
[1724852819827,10.93524,2520.4,2520.3,0.18687402]
[1724852821138,6.96762,2520.4,2520.3,0.18687402]
[1724852821679,7.93508,2520.5,2520.3,2.15238605]
[1724852821968,3.96673,2521.0,2520.3,2.15238605]
[1724852821969,3.96762,2520.4,2520.3,0.18687402]
[1724852822178,3.96741,2520.6,2520.3,0.18687402]
[1724852822341,3.96762,2520.4,2520.3,0.18687402]
[1724852822527,3.96605,2521.4,2520.3,4.23399459]
[1724852822528,3.96712,2520.8,2520.3,4.23399459]
[1724852822870,3.96679,2521.0,2520.4,2.416]
[1724852822871,3.96687,2520.9,2520.4,2.416]
[1724852823078,3.96708,2520.8,2520.5,20.12530266]
[1724852823375,3.96669,2521.0,2520.5,20.3120148]
[1724852823531,3.96669,2521.0,2520.6,21.82038307]
[1724852823727,3.96615,2521.4,2520.8,2.416]
[1724852823927,3.96582,2521.6,2521.1,3.96641]
[1724852824234,3.96575,2521.6,2521.2,2.68148062]
[1724852824461,3.96575,2521.6,2521.3,0.6570564]
[1724852824672,3.96601,2521.5,2521.2,2.60216546]
[1724852824872,3.96605,2521.4,2521.2,2.416]
[1724852825231,7.9324,2521.3,2521.2,2.416]
[1724852825684,3.9662,2521.3,2521.2,2.416]
[1724852825840,7.9324,2521.3,2521.2,2.416]
[1724852826040,3.9663,2521.3,2520.6,3.96718]
[1724852826239,3.9663,2521.3,2520.2,11.33788]
[1724852826240,3.96595,2521.5,2520.7,2.35112643]
[1724852826449,3.96595,2521.5,2520.3,2.68382463]
[1724852826450,3.96573,2521.6,2521.1,2.3403]
[1724852826820,3.96577,2521.6,2521.1,2.3403]
[1724852827134,3.96577,2521.6,2521.2,0.07931421]
[1724852827480,3.96629,2521.3,2521.1,2.3403]
[1724852827657,3.96578,2521.6,2521.1,2.3403]
[1724852827861,3.966,2521.5,2521.1,2.3403]
[1724852828573,3.96565,2521.7,2521.1,2.3403]
[1724852828873,3.96578,2521.6,2521.1,2.3403]
[1724852829078,3.96565,2521.7,2521.1,2.3403]
[1724852829242,3.96532,2521.9,2521.2,0.630686]
[1724852829441,3.96532,2521.9,2521.4,2.2653]
[1724852829631,3.96559,2521.7,2521.4,2.2653]
[1724852830262,3.96589,2521.5,2521.4,2.2653]
[1724852830681,3.96589,2521.5,2521.4,2.44757574]
[1724852831047,3.96559,2521.7,2521.4,2.44757574]
[1724852831048,3.96573,2521.6,2521.4,2.44757574]
[1724852831258,7.93178,2521.5,2521.4,0.18227574]
[1724852831449,11.89767,2521.5,2521.4,0.18227574]
[1724852831677,11.89767,2521.5,2520.9,2.2653]
[1724852831678,3.96667,2521.0,2520.9,2.2653]
[1724852831972,3.96728,2520.7,2520.5,2.332]
[1724852832143,3.9673,2520.6,2520.5,2.332]
[1724852832349,3.96726,2520.7,2520.5,2.332]
[1724852832545,3.9673,2520.6,2520.5,2.332]
[1724852833592,3.96778,2520.3,2520.2,2.4628]
[1724852833887,3.96702,2520.8,2519.6,2.4628]
[1724852833888,3.96871,2519.8,2519.6,2.4628]
[1724852834606,3.96872,2519.7,2519.6,2.4628]
[1724852835186,7.93741,2519.8,2519.6,2.4628]
[1724852835577,3.9687,2519.8,2519.6,2.4628]
[1724852835892,3.9687,2519.8,2518.6,3.97039]
[1724852835893,3.96691,2520.9,2520.2,3.9678]
[1724852836187,3.96691,2520.9,2520.1,2.3164]
[1724852836188,3.96726,2520.7,2520.1,2.3164]
[1724852836485,3.96691,2520.9,2520.2,4.04726127]
[1724852836693,3.96629,2521.3,2520.3,2.39573623]
[1724852836865,3.96615,2521.4,2520.7,6.28341]
[1724852837059,3.96639,2521.2,2520.7,2.3164]
[1724852837266,3.96671,2521.0,2520.7,2.3164]
[1724852837452,3.96874,2519.7,2519.4,2.3288]
[1724852837651,3.9682,2520.1,2519.4,2.3288]
[1724852837851,3.96847,2519.9,2519.4,2.3288]
[1724852838114,0.67373862,2520.3,2519.4,2.3288]
[1724852838115,3.96786,2520.3,2519.5,0.70918376]
[1724852838392,0.396671,2520.9,2519.4,2.3288]
[1724852838393,3.96823,2520.1,2519.4,2.3288]
[1724852838691,3.96823,2520.1,2519.5,0.23288]
[1724852839273,3.96783,2520.3,2519.6,0.0793628]
[1724852839462,3.96783,2520.3,2519.7,6.37698]
[1724852839680,3.96783,2520.3,2519.8,0.07935681]
[1724852839987,7.93572,2520.3,2519.8,0.07935681]
[1724852840173,3.96783,2520.3,2519.7,2.4084]
[1724852840378,3.9681,2520.1,2519.7,2.4084]
[1724852840888,0.396671,2520.9,2519.8,19.54760574]
[1724852841189,3.96779,2520.3,2519.9,29.24664626]
[1724852841398,3.96779,2520.3,2519.4,3.0]
[1724852841399,3.96838,2520.0,2519.8,19.46824626]
[1724852841553,3.96841,2519.9,2519.8,19.46824626]
[1724852841903,3.96904,2519.5,2519.4,7.37]
[1724852842106,3.96948,2519.3,2519.1,2.4004]
[1724852842265,3.96951,2519.2,2519.1,2.4004]
[1724852842595,0.793899,2519.2,2518.4,2.3526]
[1724852842798,3.0,2519.8,2518.4,2.3526]
[1724852842799,3.9706,2518.6,2518.4,2.3526]
[1724852843005,3.97061,2518.5,2517.8,2.3526]
[1724852843157,3.97121,2518.2,2517.9,0.632444]
[1724852843478,3.97067,2518.5,2517.8,2.3526]
[1724852843693,6.97003,2518.9,2517.8,2.3526]
[1724852843694,3.0,2518.4,2517.8,2.3526]
[1724852843852,5.094141,2518.8,2517.2,2.4913]
[1724852844053,3.97199,2517.7,2517.3,0.24913]
[1724852844362,3.8094141,2518.7,2517.4,0.07943971]
[1724852844567,3.97144,2518.0,2517.3,23.44070626]
[1724852844765,3.9711,2518.2,2517.5,3.97215]
[1724852844986,3.97119,2518.2,2517.6,0.26931989]
[1724852845289,3.97119,2518.2,2517.6,4.24133989]
[1724852845505,10.9417,2518.4,2517.7,3.97187]
[1724852845725,10.9417,2518.4,2517.8,2.50612388]
[1724852845726,3.0,2518.4,2517.8,2.50612388]
[1724852845933,3.0,2518.4,2517.9,3.97141]
[1724852846217,3.0,2518.4,2517.8,2.6894096]
[1724852846218,3.97091,2518.4,2518.0,0.183171]
[1724852846424,3.0,2518.5,2517.8,2.4267]
[1724852846591,3.97147,2518.0,2517.4,2.2915]
[1724852846781,3.97114,2518.2,2517.5,0.07943373]
[1724852846973,6.97082,2518.4,2517.7,3.97176]
[1724852847291,6.97082,2518.4,2517.8,4.05098203]
[1724852847486,6.97082,2518.4,2517.8,0.07942203]
[1724852847688,6.97087,2518.4,2517.8,0.07942203]
[1724852847990,6.97087,2518.4,2517.8,4.05111203]
[1724852848189,3.0,2518.4,2517.8,0.88170923]
[1724852848388,0.62923862,2518.9,2518.0,3.9714]
[1724852848389,3.0,2518.5,2518.0,3.9714]
[1724852848578,3.96936,2519.3,2518.2,3.97096]
[1724852848780,7.94009,2518.9,2518.1,2.37291599]
[1724852848977,3.9703,2518.7,2518.2,3.97107]
[1724852849193,3.96998,2518.9,2518.3,19.46824626]
[1724852849514,1.39671862,2519.2,2518.4,23.43901626]
[1724852849515,3.96975,2519.1,2518.4,23.43901626]
[1724852849713,3.96984,2519.0,2518.4,23.51842855]
[1724852849872,3.96999,2518.9,2518.4,19.54765855]
[1724852850076,3.96999,2518.9,2518.4,19.46824626]
[1724852850278,3.97034,2518.7,2518.4,19.46824626]
[1724852850578,0.62923862,2518.6,2518.1,2.2935]
[1724852850811,3.97088,2518.4,2518.1,2.2935]
[1724852851016,7.9418,2518.4,2518.1,2.2935]
[1724852851323,3.97128,2518.1,2517.8,19.46824626]
[1724852851493,3.97128,2518.1,2517.9,19.46824626]
[1724852852012,3.97061,2518.5,2517.9,19.46824626]
[1724852852215,3.97061,2518.5,2518.0,0.07942137]
[1724852852514,3.0,2518.4,2517.9,23.43970626]
[1724852852678,3.0,2518.4,2518.1,3.97113]
[1724852852999,3.0,2518.6,2518.1,3.97123]
[1724852853214,3.05000007,2518.6,2517.9,26.01756689]
[1724852853422,3.0,2518.6,2518.0,0.07941428]
[1724852853590,3.0,2518.6,2517.9,26.01756689]
[1724852853591,3.97062,2518.5,2517.9,29.98903689]
[1724852853939,3.0,2518.6,2518.2,3.97107]
[1724852854141,3.0,2518.6,2518.0,0.07941226]
[1724852854142,3.96989,2519.0,2518.4,2.4522]
[1724852854434,3.96985,2519.0,2518.5,19.46824626]
[1724852854786,3.9696,2519.2,2518.6,0.07940226]
[1724852854990,3.97014,2518.8,2518.5,19.46824626]
[1724852855210,7.9404,2518.8,2518.5,19.46824626]
[1724852855427,3.96991,2519.0,2518.5,19.46824626]
[1724852855595,0.05000007,2519.1,2518.5,21.66029089]
[1724852855790,3.97034,2518.7,2518.4,2.4522]
[1724852855999,0.05000007,2518.6,2518.4,2.4522]
[1724852856333,3.97023,2518.8,2518.4,2.4522]
[1724852856490,4.02006007,2518.9,2518.4,2.4522]
[1724852856491,3.97031,2518.7,2518.4,2.4522]
[1724852857195,7.99016007,2518.9,2518.4,2.4522]
[1724852857497,3.97039,2518.7,2518.4,2.4522]
[1724852857720,0.05000007,2518.6,2518.1,19.46824626]
[1724852857911,3.97108,2518.3,2518.1,19.46824626]
[1724852858123,3.97075,2518.5,2518.1,19.46824626]
[1724852858308,3.0,2518.6,2518.1,26.01434889]
[1724852858510,3.97015,2518.8,2518.3,2.2984]
[1724852858734,3.96989,2519.0,2518.4,0.07940958]
[1724852858898,3.97,2518.9,2518.5,19.46824626]
[1724852859099,0.84898908,2518.9,2518.5,19.46824626]
[1724852859450,3.9714,2518.0,2517.9,2.2984]
[1724852859599,3.97157,2517.9,2517.6,19.46824626]
[1724852859936,7.94374,2517.7,2517.6,19.46824626]
[1724852860505,3.97172,2517.8,2517.0,21.76664626]
[1724852860701,3.97262,2517.3,2517.1,19.46824626]
[1724852861253,3.97261,2517.3,2517.1,19.46824626]
[1724852861401,4.02224007,2517.5,2517.1,19.46824626]
[1724852861743,0.05000007,2517.6,2517.1,19.46824626]
[1724852862049,3.0,2517.6,2517.1,22.38191089]
[1724852862334,3.97247,2517.4,2517.1,19.46824626]
[1724852862501,0.05000007,2517.5,2517.1,19.46824626]
[1724852862701,3.05000007,2517.6,2517.1,19.46824626]
[1724852862899,4.02203007,2517.6,2517.1,19.46824626]
[1724852863238,0.05000007,2517.6,2517.1,19.46824626]
[1724852863624,3.0,2517.9,2517.1,19.46824626]
[1724852863625,0.05000007,2517.8,2517.2,2.362]
[1724852863838,7.02163007,2517.9,2517.3,3.9725]
[1724852864200,7.94203,2518.3,2517.5,3.97219]
[1724852864427,3.05000007,2518.2,2517.7,6.33387]
[1724852864758,0.05000007,2518.2,2517.7,25.80211626]
[1724852864929,3.97097,2518.3,2517.7,25.80211626]
[1724852865130,3.97097,2518.3,2517.7,21.83024626]
[1724852865354,0.05000007,2518.2,2517.7,21.83024626]
[1724852865555,3.97116,2518.2,2517.7,21.83024626]
[1724852865867,0.05000007,2518.1,2517.7,21.83024626]
[1724852866733,4.02131007,2518.1,2517.7,21.83024626]
[1724852867536,0.05000007,2518.1,2517.7,21.83024626]
[1724852867959,0.05000007,2518.1,2517.8,19.46824626]
[1724852868867,4.02127007,2518.1,2517.8,19.46824626]
[1724852869164,0.05000007,2518.1,2517.8,19.46824626]
[1724852870242,4.02126007,2518.1,2517.8,19.46824626]
[1724852870576,0.05000007,2518.1,2517.8,19.46824626]
[1724852871187,3.97052,2518.6,2517.8,19.46824626]
[1724852871188,3.97052,2518.6,2517.9,19.46824626]
[1724852871494,3.97027,2518.8,2518.1,2.3626]
[1724852871640,3.97052,2518.6,2518.2,19.46824626]
[1724852871833,0.05000007,2518.7,2518.2,19.46824626]
[1724852871834,7.94186,2518.3,2518.2,19.46824626]
[1724852872036,3.97087,2518.4,2517.8,21.89574626]
[1724852872279,3.97124,2518.2,2517.8,21.89574626]
[1724852872483,3.9714,2518.0,2517.8,21.89574626]
[1724852872794,3.05000007,2518.5,2517.9,3.97156]
[1724852873075,3.97054,2518.6,2517.9,4.05098052]
[1724852873248,4.03765241,2519.9,2518.7,2.3306]
[1724852873450,3.96912,2519.5,2518.9,3.96986]
[1724852873656,3.96912,2519.5,2519.0,3.96981]
[1724852873979,0.05000007,2519.4,2518.9,19.46824626]
[1724852874335,3.96962,2519.2,2518.9,19.46824626]
[1724852874535,0.05000007,2519.1,2518.8,19.46824626]
[1724852874778,3.96909,2519.5,2518.8,19.46824626]
[1724852875075,3.96937,2519.3,2518.8,21.65782089]
[1724852875236,3.96937,2519.3,2518.8,19.46824626]
[1724852875437,0.05000007,2519.4,2518.9,4.14561848]
[1724852875661,4.01879007,2519.7,2519.1,3.96957]
[1724852875882,4.01879007,2519.7,2519.2,0.17526871]
[1724852876038,3.96814,2520.1,2518.7,2.3306]
[1724852876039,3.96952,2519.2,2518.7,2.3306]
[1724852876383,3.96952,2519.2,2518.8,0.1754822]
[1724852876847,3.96939,2519.3,2518.9,0.17449481]
[1724852877054,3.96913,2519.5,2518.7,6.30076]
[1724852877254,3.96898,2519.6,2518.9,3.96997]
[1724852877255,3.96896,2519.6,2518.9,3.96997]
[1724852877579,3.96896,2519.6,2519.0,0.17534431]
[1724852877580,6.96906,2519.5,2519.0,0.17534431]
[1724852877972,3.0,2519.5,2519.1,2.2621]
[1724852878136,0.80607736,2520.5,2519.3,2.2621]
[1724852878137,3.96767,2520.4,2519.3,2.2621]
[1724852878339,0.41420109,2520.5,2520.0,2.2621]
[1724852878608,3.96809,2520.1,2519.7,2.2621]
[1724852878748,0.05000007,2520.0,2519.7,2.2621]
[1724852878946,3.96725,2520.7,2519.2,3.96942]
[1724852878947,3.96856,2519.8,2519.2,3.96942]
[1724852879164,3.96856,2519.8,2519.3,2.3984]
[1724852879406,0.05000007,2519.7,2519.3,2.3984]
[1724852879682,3.96799,2520.2,2519.3,2.3984]
[1724852879683,3.96835,2520.0,2519.3,2.3984]
[1724852879978,3.96866,2519.8,2519.3,2.3984]
[1724852880138,0.05000007,2519.7,2519.3,2.3984]
[1724852880589,3.96966,2519.2,2518.9,2.3875]
[1724852880737,3.0,2520.0,2518.9,2.3875]
[1724852880738,4.01969007,2519.1,2518.9,2.3875]
[1724852880937,3.96982,2519.0,2518.5,6.27851]
[1724852881177,0.05000007,2519.1,2518.5,6.27851]
[1724852881474,4.01928007,2519.4,2518.7,3.97027]
[1724852881674,3.96944,2519.3,2518.7,3.97027]
[1724852881985,3.96984,2519.0,2518.5,2.3079]
[1724852882353,3.9696,2519.2,2518.7,3.97029]
[1724852882676,4.01960007,2519.2,2518.5,2.3079]
[1724852882877,7.98920007,2519.2,2518.6,3.97037]
[1724852883083,0.05000007,2519.2,2518.6,3.97035]
[1724852883302,0.05000007,2519.2,2518.5,2.53869]
[1724852883303,3.0,2519.5,2518.9,2.4022]
[1724852883506,3.96904,2519.5,2519.0,3.96973]
[1724852883716,0.05000007,2519.7,2519.0,3.96973]
[1724852883717,3.96897,2519.6,2519.0,7.93946]
[1724852883989,0.05000007,2519.7,2519.3,2.3955]
[1724852884350,3.96866,2519.8,2519.3,2.3955]
[1724852884596,8.334186,2519.8,2519.4,0.17513085]
[1724852884796,0.05000007,2519.7,2519.4,0.17513085]
[1724852884953,4.01866007,2519.8,2519.4,0.17513085]
[1724852885152,0.05000007,2519.7,2519.4,0.17513085]
[1724852885373,7.01880007,2519.7,2519.4,0.17513085]
[1724852885697,3.96897,2519.6,2519.4,0.17513085]
[1724852885880,5.11773308,2519.6,2519.4,0.17513085]
[1724852886054,3.96904,2519.5,2519.4,0.17513085]
[1724852886257,7.98808007,2519.5,2519.4,0.17513085]
[1724852886475,3.96922,2519.4,2518.9,2.2815]
[1724852886815,3.0,2519.7,2518.9,2.2815]
[1724852886816,3.96851,2519.9,2519.2,3.9695]
[1724852887092,0.05000007,2519.8,2519.3,2.55042337]
[1724852887300,0.05000007,2519.8,2519.3,0.17362337]
[1724852887301,3.96915,2519.5,2519.3,0.17362337]
[1724852887457,0.05000007,2519.8,2519.0,2.3768]
[1724852887458,3.96889,2519.6,2519.0,6.34653]
[1724852887655,4.01889007,2519.6,2519.0,6.34653]
[1724852887983,3.96907,2519.5,2519.1,0.1737301]
[1724852888186,3.96938,2519.3,2519.1,0.1737301]
[1724852888389,0.05000007,2519.4,2519.1,0.1737301]
[1724852888557,3.96881,2519.7,2519.2,7.93894]
[1724852888762,6.96848,2519.9,2519.2,7.93894]
[1724852888763,3.96848,2519.9,2519.4,10.35724]
[1724852889061,4.01826007,2520.0,2519.5,0.17355586]
[1724852889256,6.9682,2520.1,2519.5,0.2529296]
[1724852889578,6.538518,2520.8,2519.6,3.96878]
[1724852889579,3.96788,2520.3,2519.6,3.96878]
[1724852889885,3.9678,2520.3,2519.8,3.96841]
[1724852890064,0.05000007,2520.2,2519.7,19.64163271]
[1724852890259,3.96828,2520.0,2519.7,19.64163271]
[1724852890770,4.4036238,2520.7,2519.7,19.64163271]
[1724852890771,4.01854007,2519.9,2519.7,19.64163271]
[1724852890980,3.96854,2519.9,2519.7,19.64163271]
[1724852891298,7.98712007,2519.8,2519.7,19.64163271]
[1724852891867,3.96856,2519.8,2519.7,19.64163271]
[1724852892598,7.93673,2520.0,2519.7,19.64163271]
[1724852892773,3.96835,2520.0,2519.7,19.64163271]
[1724852892977,3.96801,2520.2,2519.8,2.2715]
[1724852893189,7.98540007,2520.4,2519.8,6.3192816]
[1724852893508,3.96766,2520.4,2519.9,19.64148683]
[1724852894103,0.05000007,2520.3,2519.9,19.64148683]
[1724852894260,3.96796,2520.2,2519.9,19.64148683]
[1724852895104,3.0,2520.3,2519.9,19.64148683]
[1724852895311,3.0,2520.3,2519.9,25.80110551]
[1724852895611,3.0,2520.3,2520.0,3.96823]
[1724852895763,3.0,2520.5,2519.9,19.64148683]
[1724852895961,0.05000007,2520.6,2520.1,0.17285174]
[1724852895962,4.01735007,2520.6,2520.1,0.17285174]
[1724852896285,3.96707,2520.8,2520.2,0.17279842]
[1724852896601,3.96707,2520.8,2520.3,2.318]
[1724852896904,0.41416545,2521.0,2520.5,3.96744]
[1724852897116,4.01667007,2521.1,2520.6,19.46824626]
[1724852897266,4.01667007,2521.1,2520.6,19.63984393]
[1724852897589,4.01662007,2521.1,2520.6,19.63984393]
[1724852897785,3.96629,2521.3,2520.6,19.63984393]
[1724852898102,4.01595007,2521.5,2520.7,6.36436729]
[1724852898333,4.01595007,2521.5,2520.7,2.48925453]
[1724852898490,4.37893676,2522.1,2520.7,2.48925453]
[1724852898491,3.96531,2521.9,2521.1,3.96643]
[1724852898696,0.05000007,2521.8,2521.3,6.2842]
[1724852898906,3.9656,2521.7,2521.3,2.318]
[1724852899114,0.05000007,2521.6,2521.4,0.17066224]
[1724852899328,3.96602,2521.5,2521.4,0.17066224]
[1724852899524,3.96602,2521.5,2520.9,6.28315]
[1724852899525,3.96602,2521.5,2520.9,6.28314]
[1724852899817,4.01578007,2521.6,2521.4,0.17066224]
[1724852900027,4.01578007,2521.6,2520.9,6.28314]
[1724852900028,3.96578,2521.6,2521.1,3.96651]
[1724852900187,3.05000007,2521.9,2521.5,0.17060897]
[1724852900519,3.96487,2522.2,2521.7,3.96557]
[1724852900729,0.05000007,2522.1,2521.6,0.17055571]
[1724852900896,3.96557,2521.7,2521.5,2.3164]
[1724852901091,3.96537,2521.9,2521.7,0.17002489]
[1724852901279,3.96522,2522.0,2521.5,2.3164]
[1724852901485,4.01528007,2521.9,2521.8,0.16997164]
[1724852901686,3.96436,2522.5,2521.5,2.3164]
[1724852901687,0.05000007,2522.0,2521.5,2.3164]
[1724852901882,3.96495,2522.1,2521.5,10.24791]
[1724852902221,3.96495,2522.1,2521.5,6.28215]
[1724852902378,3.96512,2522.0,2521.6,0.16993728]
[1724852902786,4.66644501,2522.1,2521.6,4.13564728]
[1724852902980,0.05000007,2522.2,2521.7,3.96556]
[1724852903185,0.05000007,2522.2,2521.8,2.3164]
[1724852903425,3.96504,2522.1,2521.8,2.48623076]
[1724852903579,0.05000007,2522.5,2521.8,2.48623076]
[1724852903781,3.96499,2522.1,2521.8,2.48623076]
[1724852904584,4.01511007,2522.0,2521.8,2.48623076]
[1724852904820,7.98052007,2521.9,2521.8,0.16983076]
[1724852905015,10.98052007,2521.9,2521.8,0.16983076]
[1724852905185,7.01526007,2521.9,2521.4,2.4759]
[1724852905509,10.98063007,2521.9,2521.5,0.169881]
[1724852905900,3.96542,2521.8,2521.5,0.169881]
[1724852906099,7.93146,2521.6,2521.5,0.169881]
[1724852906330,7.93146,2521.6,2521.0,2.4759]
[1724852906331,3.9659,2521.5,2521.1,19.46824626]
[1724852906482,3.9664,2521.2,2521.0,2.4759]
[1724852906688,0.05000007,2521.1,2520.7,19.46824626]
[1724852906992,3.9664,2521.2,2520.8,19.46824626]
[1724852907217,3.96614,2521.4,2520.8,23.43523626]
[1724852907385,0.05000007,2521.5,2520.8,23.43523626]
[1724852907386,4.01591007,2521.5,2520.9,3.96673]
[1724852907723,7.9322,2521.4,2520.8,26.20002914]
[1724852907926,3.96607,2521.4,2520.8,27.40203626]
[1724852908249,3.96607,2521.4,2520.9,3.96673]
[1724852908653,3.96607,2521.4,2520.8,23.43513626]
[1724852908852,3.96648,2521.2,2520.8,19.46824626]
[1724852909152,3.96598,2521.5,2521.0,3.96667]
[1724852909504,7.93196,2521.5,2520.8,23.43510626]
[1724852909704,4.61338126,2521.5,2520.9,3.9668]
[1724852909905,8.57937126,2521.5,2521.0,3.96666]
[1724852910139,0.05000007,2521.4,2520.8,23.43509626]
[1724852910444,3.96621,2521.3,2520.8,23.43509626]
[1724852910601,3.96621,2521.3,2520.8,27.40198626]
[1724852910809,3.96621,2521.3,2520.8,23.43509626]
[1724852911246,3.96621,2521.3,2520.8,19.46824626]
[1724852911712,7.93252,2521.3,2520.8,23.43522626]
[1724852912045,7.93252,2521.3,2520.8,19.46824626]
[1724852912046,3.96638,2521.2,2520.8,19.46824626]
[1724852912406,4.81109582,2521.3,2520.8,23.43521626]
[1724852912727,3.96644,2521.2,2520.9,19.46824626]
[1724852913135,7.98256007,2521.3,2520.9,19.46824626]
[1724852913342,4.01621007,2521.3,2520.9,19.46824626]
[1724852913653,3.96599,2521.5,2521.0,3.96653]
[1724852913812,3.96599,2521.5,2520.9,23.43506626]
[1724852914363,3.96605,2521.4,2520.9,23.43506626]
[1724852914658,3.96599,2521.5,2520.9,23.43494626]
[1724852914659,4.41758908,2521.5,2520.9,23.43494626]
[1724852914855,8.38359908,2521.5,2520.9,23.43494626]
[1724852915056,3.96608,2521.4,2520.9,23.43494626]
[1724852915219,0.40159901,2521.5,2521.0,3.96663]
[1724852915419,3.05000007,2521.5,2521.0,3.96663]
[1724852915641,3.96569,2521.7,2521.2,6.45731]
[1724852915952,3.0,2521.6,2521.2,25.92555626]
[1724852916152,3.96547,2521.8,2521.3,3.96609]
[1724852916363,3.96547,2521.8,2521.2,21.95934626]
[1724852916364,3.96578,2521.6,2521.2,21.95934626]
[1724852916513,4.01599007,2521.5,2521.2,21.95934626]
[1724852916714,3.96615,2521.4,2521.2,21.95934626]
[1724852916984,3.96599,2521.5,2521.2,21.95934626]
[1724852917253,0.05000007,2521.5,2521.2,21.95934626]
[1724852917452,3.96604,2521.5,2521.2,21.95934626]
[1724852917955,3.9661,2521.4,2521.2,21.95934626]
[1724852918250,3.96604,2521.5,2521.2,21.95934626]
[1724852918459,3.96601,2521.5,2521.2,21.95934626]
[1724852920057,4.76417801,2521.5,2521.2,19.46824626]
[1724852920353,3.0,2521.8,2520.6,21.89884626]
[1724852920354,3.9662,2521.3,2520.6,21.89884626]
[1724852920526,6.96546,2521.8,2520.7,0.16412297]
[1724852920527,3.96699,2520.8,2520.7,0.16412297]
[1724852920753,3.96686,2520.9,2520.3,2.50994701]
[1724852920957,3.96663,2521.1,2520.6,3.96719]
[1724852921156,3.05000007,2521.2,2520.8,3.96698]
[1724852921341,3.96632,2521.3,2520.9,2.53181637]
[1724852921544,3.96637,2521.2,2520.9,0.16401637]
[1724852921978,3.96632,2521.3,2520.7,3.96702]
[1724852922178,3.0,2521.6,2520.8,0.16406967]
[1724852922484,7.93366,2520.9,2520.8,0.16406967]
[1724852922687,3.967,2520.8,2520.5,2.3678]
[1724852923057,0.55,2521.5,2520.0,3.0]
[1724852923058,3.96776,2520.4,2520.0,2.4055]
[1724852923258,3.96658,2521.1,2519.6,2.451]
[1724852923259,3.96809,2520.1,2519.6,2.451]
[1724852923881,4.01804007,2520.2,2519.6,6.41978]